bitfinex/quotes_ETHUSD_20250523
["timestamp","ask_amount","ask_price","bid_price","bid_amount"]
[1747971645078,3.68582064,2713.1,2713.0,0.43627476]
[1747971645265,3.68582064,2713.1,2713.0,23.30427476]
[1747971645468,3.68582064,2713.1,2713.0,8.43627476]
[1747971645702,3.68582064,2713.1,2713.0,15.30427476]
[1747971646004,4.54022064,2713.1,2713.0,0.43627476]
[1747971646921,5.36281173,2713.1,2713.0,0.43627476]
[1747971647069,3.68622825,2712.8,2712.7,15.30427476]
[1747971647482,0.8568,2713.0,2712.7,15.30427476]
[1747971647833,3.68614412,2712.9,2712.7,15.30427476]
[1747971648555,0.8568,2713.0,2712.7,15.30427476]
[1747971648841,0.8568,2713.0,2712.7,18.047627]
[1747971649198,3.68610826,2712.9,2712.7,14.868]
[1747971649402,4.54280262,2713.0,2712.7,14.868]
[1747971649812,0.8568,2713.0,2712.7,14.868]
[1747971650435,0.9247,2713.3,2712.7,18.31446215]
[1747971650731,0.9247,2713.3,2712.8,3.68614868]
[1747971650911,0.9247,2713.3,2712.9,8.0]
[1747971651714,4.61025035,2713.3,2712.9,8.0]
[1747971652034,4.61025035,2713.3,2712.9,8.5819952]
[1747971652233,3.68569,2713.2,2712.9,8.5819952]
[1747971652591,4.61030337,2713.3,2712.9,8.5819952]
[1747971653321,4.61030337,2713.3,2712.9,0.5819952]
[1747971653632,4.61030337,2713.3,2713.0,14.869]
[1747971654140,0.9247,2713.3,2713.0,14.869]
[1747971655619,0.9247,2713.3,2713.1,8.0]
[1747971655821,3.68542092,2713.4,2713.1,8.0]
[1747971656905,0.8917,2713.5,2713.1,8.0]
[1747971657110,4.57705421,2713.5,2713.1,8.0]
[1747971657822,5.40326065,2713.5,2712.8,8.0]
[1747971658022,4.57705421,2713.5,2713.0,8.0]
[1747971658621,0.8917,2713.5,2713.0,8.0]
[1747971658917,4.57704027,2713.5,2713.0,8.0]
[1747971659494,4.57704027,2713.5,2713.0,11.68595419]
[1747971659706,3.6851482,2713.6,2713.1,3.68581618]
[1747971659911,3.6851482,2713.6,2713.0,12.92498583]
[1747971660111,3.6851482,2713.6,2713.1,3.38128483]
[1747971660415,3.68530981,2713.5,2713.1,3.38128483]
[1747971660791,3.68520356,2713.6,2713.1,3.38128483]
[1747971660997,0.8842,2713.7,2713.2,0.8819]
[1747971661530,3.68517203,2713.6,2713.1,3.38128483]
[1747971662135,0.8842,2713.7,2713.2,1.23908985]
[1747971662298,4.56921343,2713.7,2713.2,1.23908985]
[1747971662496,0.8842,2713.7,2713.3,8.0]
[1747971662840,0.02,2713.9,2713.5,8.0]
[1747971663010,3.70475657,2713.9,2713.5,8.0]
[1747971663418,3.68487132,2713.8,2713.5,8.0]
[1747971665838,3.6851415,2713.6,2713.0,0.8695]
[1747971666040,3.68548584,2713.4,2713.0,0.8695]
[1747971666208,3.68548584,2713.4,2713.1,33.883]
[1747971666568,0.8564,2713.8,2713.2,8.0]
[1747971667031,3.6850941,2713.7,2713.2,8.0]
[1747971667406,0.8564,2713.8,2713.2,8.0]
[1747971667631,3.68542222,2713.4,2713.2,8.0]
[1747971667828,3.68531051,2713.5,2713.0,8.0]
[1747971668026,3.68531051,2713.5,2712.9,3.68602906]
[1747971668027,3.68531051,2713.5,2713.4,8.0]
[1747971668652,3.68531051,2713.5,2713.3,8.0]
[1747971668956,3.68531051,2713.5,2713.4,14.84]
[1747971670951,3.68542775,2713.4,2713.3,8.0]
[1747971671154,3.68542775,2713.4,2713.3,22.84]
[1747971671453,1.31251968,2713.8,2713.0,8.0]
[1747971671641,1.31251968,2713.8,2712.8,4.6256891]
[1747971671642,0.50173165,2713.7,2713.4,8.0]
[1747971671828,3.68541313,2713.4,2713.3,8.0]
[1747971672551,3.68541313,2713.4,2713.3,22.84]
[1747971674060,3.68545756,2713.4,2712.7,1.17667768]
[1747971674259,6.0,2713.6,2712.7,1.17667768]
[1747971674260,4.54922825,2712.8,2712.7,1.17667768]
[1747971675016,0.863,2712.8,2712.7,1.17667768]
[1747971675215,3.68589752,2713.1,2712.7,1.17667768]
[1747971676067,6.0,2713.3,2712.8,8.0]
[1747971676248,6.0,2713.3,2712.9,1.25446544]
[1747971676558,6.0,2713.3,2713.0,18.52586071]
[1747971676711,6.0,2713.3,2713.2,8.0]
[1747971677933,4.59003457,2713.6,2713.2,8.0]
[1747971678634,0.9048,2713.6,2713.2,8.0]
[1747971678834,3.6850931,2713.7,2713.2,11.36590924]
[1747971679169,3.6851481,2713.6,2713.2,11.36590924]
[1747971680082,3.68531002,2713.5,2713.2,11.36590924]
[1747971680235,3.68531002,2713.5,2713.2,8.0]
[1747971681191,3.68543001,2713.4,2713.2,8.0]
[1747971681541,3.68578151,2713.2,2713.1,14.84]
[1747971682261,4.57254896,2713.3,2713.2,8.0]
[1747971682262,4.57257477,2713.3,2713.2,8.0]
[1747971682860,0.887,2713.5,2713.2,8.0]
[1747971683263,4.57231132,2713.5,2713.2,8.0]
[1747971683581,4.57362934,2713.7,2713.2,10.284]
[1747971683877,3.68523587,2713.6,2713.3,0.58561326]
[1747971684077,3.68520182,2713.6,2713.3,0.58561326]
[1747971684279,0.8886,2713.7,2713.3,0.58561326]
[1747971684653,3.6851415,2713.6,2713.3,0.58561326]
[1747971684875,3.68529443,2713.5,2713.3,0.58561326]
[1747971685375,3.68529443,2713.5,2713.2,8.0]
[1747971685674,3.68519248,2713.6,2713.2,8.0]
[1747971685874,4.57364876,2713.7,2713.2,11.1887]
[1747971686080,3.68504876,2713.7,2713.2,11.1887]
[1747971686244,3.68504876,2713.7,2713.2,14.87437972]
[1747971686444,3.68491076,2713.8,2713.2,14.87437972]
[1747971687245,3.68502159,2713.7,2713.5,0.58311177]
[1747971688585,3.6851415,2713.6,2713.5,0.58311177]
[1747971689576,3.68506702,2713.7,2713.5,0.58311177]
[1747971690586,3.6851415,2713.6,2713.5,0.58311177]
[1747971690793,3.6851415,2713.6,2713.5,23.39211177]
[1747971690992,4.5465415,2713.6,2713.5,23.39211177]
[1747971691365,4.5465415,2713.6,2713.5,8.58311177]
[1747971691885,4.5465415,2713.6,2713.5,8.0]
[1747971692405,5.41531052,2713.6,2713.5,8.0]
[1747971694785,1.34423665,2713.8,2713.5,8.0]
[1747971694984,3.6851415,2713.6,2713.5,8.0]
[1747971699996,0.02,2713.9,2713.5,8.0]
[1747971700198,3.68503846,2713.7,2713.5,8.0]
[1747971701727,3.68503846,2713.7,2713.5,8.58311177]
[1747971702398,0.02,2713.9,2713.5,8.58311177]
[1747971702603,3.68500952,2713.7,2713.5,8.58311177]
[1747971702993,3.6849333,2713.8,2713.6,8.0]
[1747971703313,3.6849333,2713.8,2713.5,8.58311177]
[1747971703721,3.68502845,2713.7,2713.5,8.58311177]
[1747971703907,3.6851415,2713.6,2713.5,8.58311177]
[1747971704102,3.6851415,2713.6,2713.5,23.39211177]
[1747971704414,3.6851415,2713.6,2713.5,8.58311177]
[1747971704730,3.6851415,2713.6,2713.5,23.39111177]
[1747971708048,3.6851415,2713.6,2713.5,8.58311177]
[1747971708344,3.6851415,2713.6,2713.5,0.58311177]
[1747971708345,11.2908585,2713.6,2713.5,0.58311177]
[1747971708727,7.605717,2713.6,2713.3,0.58311177]
[1747971708929,3.68605473,2713.0,2712.8,14.808]
[1747971710844,0.8714,2713.4,2712.8,14.808]
[1747971711143,3.68609237,2712.9,2712.8,14.808]
[1747971711706,3.68599535,2713.0,2712.8,14.808]
[1747971712116,3.68609237,2712.9,2712.8,22.808]
[1747971712736,4.61811166,2713.0,2712.8,22.808]
[1747971712945,3.68609237,2712.9,2712.8,22.808]
[1747971714347,4.6181104,2713.0,2712.8,22.808]
[1747971714535,3.6860104,2713.0,2712.8,22.808]
[1747971714722,3.68609237,2712.9,2712.8,22.808]
[1747971714918,3.68582064,2713.1,2712.8,22.808]
[1747971715107,1.55996809,2713.3,2712.9,8.0]
[1747971715314,3.68527731,2713.5,2712.9,8.0]
[1747971715722,3.68552477,2713.4,2712.9,8.0]
[1747971715929,3.68557165,2713.3,2712.9,8.0]
[1747971716324,3.68546941,2713.4,2712.9,8.0]
[1747971716528,6.8839,2713.6,2713.1,11.68573567]
[1747971716748,3.68510167,2713.7,2713.2,3.19337357]
[1747971716912,3.68510167,2713.7,2713.3,22.81]
[1747971718428,10.60166897,2713.9,2713.4,11.044]
[1747971718429,3.6849123,2713.8,2713.4,11.044]
[1747971718644,3.6849123,2713.8,2713.5,8.0]
[1747971718857,3.68501283,2713.7,2713.5,8.0]
[1747971719039,10.60164986,2713.9,2713.5,8.0]
[1747971719254,3.68486992,2713.8,2713.5,8.0]
[1747971719532,10.60164986,2713.9,2713.5,8.0]
[1747971720033,3.68501486,2713.7,2713.5,8.0]
[1747971721872,3.6851415,2713.6,2713.5,8.0]
[1747971722177,3.68506629,2713.7,2713.5,8.0]
[1747971722670,3.68506629,2713.7,2713.6,22.773]
[1747971731263,5.11375052,2713.7,2713.6,8.0]
[1747971731470,5.11375052,2713.7,2713.6,22.773]
[1747971731700,5.11375052,2713.7,2713.6,8.0]
[1747971732200,6.00205052,2713.7,2713.6,8.0]
[1747971732404,3.68554896,2713.3,2713.2,14.773]
[1747971732702,3.68554896,2713.3,2713.2,22.773]
[1747971735798,3.68554896,2713.3,2713.2,8.0]
[1747971735799,4.57384896,2713.3,2713.2,8.0]
[1747971736304,3.68557734,2713.3,2713.2,8.0]
[1747971737579,6.9115,2714.7,2713.3,0.9453]
[1747971737795,6.9115,2714.7,2713.8,11.68486992]
[1747971737796,10.59518256,2714.7,2713.8,11.68486992]
[1747971737977,3.68381247,2714.6,2713.8,37.50286992]
[1747971738306,3.68408002,2714.4,2713.8,37.50286992]
[1747971738711,3.68394107,2714.5,2713.8,38.44816992]
[1747971738921,3.68383316,2714.6,2713.8,39.31852116]
[1747971739718,3.68395824,2714.5,2713.8,39.31852116]
[1747971740778,3.683832,2714.6,2713.8,39.31852116]
[1747971741014,3.68395038,2714.5,2713.8,39.31852116]
[1747971741185,3.68406241,2714.4,2713.8,39.31852116]
[1747971741615,3.6837911,2714.6,2713.8,39.31852116]
[1747971741816,3.68415068,2714.4,2713.8,39.31852116]
[1747971742122,3.68402493,2714.5,2713.8,39.31852116]
[1747971742917,3.68407035,2714.4,2713.8,35.63365124]
[1747971743122,3.68440998,2714.2,2713.8,35.63365124]
[1747971743817,3.68448103,2714.1,2713.9,8.145408]
[1747971743993,3.68459837,2714.0,2713.9,19.187408]
[1747971744193,3.68459837,2714.0,2713.9,22.916408]
[1747971744519,3.68459837,2714.0,2713.9,8.145408]
[1747971744719,3.68459837,2714.0,2713.9,22.916408]
[1747971744924,4.51386631,2714.0,2713.9,8.145408]
[1747971746201,3.68459837,2714.0,2713.9,8.145408]
[1747971748241,6.0,2714.1,2713.6,14.771]
[1747971748445,3.68476799,2713.9,2713.6,14.771]
[1747971748746,3.68500571,2713.7,2713.6,17.41024579]
[1747971748890,3.6851415,2713.6,2713.5,0.57945792]
[1747971749093,3.6851415,2713.6,2713.5,15.35045792]
[1747971749440,0.9259,2714.0,2713.5,15.35045792]
[1747971749596,3.68464953,2714.0,2713.5,17.98970371]
[1747971750217,3.68473414,2713.9,2713.5,15.35045792]
[1747971751443,3.68475072,2713.9,2713.5,15.35045792]
[1747971752238,9.68458052,2714.1,2713.6,0.937]
[1747971752629,9.68458052,2714.1,2713.6,1.51645792]
[1747971752826,6.0,2714.1,2713.6,1.51645792]
[1747971753047,3.68475516,2713.9,2713.6,9.51645792]
[1747971754246,3.68487323,2713.8,2713.6,8.57945792]
[1747971754449,3.68500348,2713.8,2713.6,8.57945792]
[1747971755469,3.68500348,2713.8,2713.6,8.0]
[1747971756074,3.68500571,2713.7,2713.6,19.042]
[1747971756366,3.68492034,2713.8,2713.6,19.042]
[1747971756652,3.68492034,2713.8,2713.6,8.0]
[1747971756653,3.68500571,2713.7,2713.6,8.0]
[1747971756859,3.68487181,2713.8,2713.7,14.735]
[1747971757038,3.68487181,2713.8,2713.7,22.735]
[1747971757211,3.6851415,2713.6,2713.5,0.57945792]
[1747971757411,9.72212858,2713.6,2713.5,0.57945792]
[1747971757686,10.5992415,2713.6,2713.5,0.57945792]
[1747971757892,12.10136301,2713.6,2713.5,0.57945792]
[1747971758241,3.6856848,2713.2,2713.1,22.736]
[1747971758691,3.6856848,2713.2,2713.1,8.0]
[1747971760745,3.68582064,2713.1,2713.0,30.64]
[1747971761783,3.68582064,2713.1,2712.9,0.57945792]
[1747971761784,3.6859565,2713.0,2712.9,0.57945792]
[1747971761979,9.6859565,2713.0,2712.9,0.57945792]
[1747971762280,9.6859565,2713.0,2712.7,14.737]
[1747971762281,3.68622825,2712.8,2712.7,15.31645792]
[1747971762891,6.0,2713.0,2712.7,15.31645792]
[1747971763099,9.68604513,2713.0,2712.7,15.31645792]
[1747971763302,3.68613051,2712.9,2712.7,15.31645792]
[1747971763475,3.68622825,2712.8,2712.7,15.31645792]
[1747971763974,3.68622825,2712.8,2712.7,14.737]
[1747971764575,3.68613101,2712.9,2712.7,14.737]
[1747971764795,6.0,2713.0,2712.7,14.737]
[1747971765110,6.0,2713.0,2712.7,15.6693]
[1747971765307,6.0,2713.0,2712.8,8.0]
[1747971765998,6.0,2713.0,2712.9,19.044]
[1747971766201,3.68561159,2713.3,2713.0,8.0]
[1747971766390,10.57636824,2713.7,2713.1,0.9362]
[1747971766576,3.6851415,2713.6,2713.2,14.738]
[1747971766777,3.68531207,2713.5,2713.2,14.738]
[1747971767160,3.6851775,2713.6,2713.3,8.0]
[1747971768013,3.68522285,2713.6,2713.3,8.0]
[1747971768508,6.0,2713.7,2713.3,8.0]
[1747971768667,6.0,2713.7,2713.3,10.62683904]
[1747971769409,9.68502504,2713.7,2713.5,8.0]
[1747971769813,3.6851415,2713.6,2713.5,8.0]
[1747971770168,3.68535511,2713.5,2713.2,0.57945792]
[1747971770503,3.68535511,2713.5,2713.4,8.0]
[1747971770706,3.68535511,2713.5,2713.4,22.737]
[1747971771309,3.68535511,2713.5,2713.4,8.0]
[1747971771607,3.68520118,2713.6,2713.5,8.0]
[1747971771907,6.0,2713.7,2713.5,8.0]
[1747971772200,6.9204,2714.1,2713.5,8.0]
[1747971772371,3.68510138,2713.7,2713.5,8.0]
[1747971772574,3.6851415,2713.6,2713.5,8.0]
[1747971772777,3.6851415,2713.6,2713.4,14.737]
[1747971772978,3.68505102,2713.7,2713.4,14.737]
[1747971775120,3.68477126,2713.9,2713.4,14.737]
[1747971775504,3.68477126,2713.9,2713.4,15.31645792]
[1747971775708,3.68487721,2713.8,2713.4,15.31645792]
[1747971775945,3.68516536,2713.6,2713.4,15.31645792]
[1747971776324,3.68527731,2713.5,2713.4,0.57945792]
[1747971776498,3.68527731,2713.5,2713.4,15.31545792]
[1747971776862,4.50900985,2713.5,2713.4,0.57945792]
[1747971777639,3.68598821,2713.0,2712.8,14.736]
[1747971777840,3.68593443,2713.1,2712.8,14.736]
[1747971778207,3.68576824,2713.2,2712.8,14.736]
[1747971778434,3.68601069,2713.0,2712.8,14.736]
[1747971778636,3.68592214,2713.1,2712.8,14.736]
[1747971778816,0.82373254,2713.5,2712.8,14.736]
[1747971779021,3.68603516,2713.0,2712.8,14.736]
[1747971779743,3.68629282,2712.8,2712.3,8.0]
[1747971779934,3.68645498,2712.7,2712.4,25.78]
[1747971780261,0.905,2713.2,2712.5,3.68663594]
[1747971780409,3.6856848,2713.2,2712.5,3.68663594]
[1747971780748,3.68576342,2713.2,2712.7,0.884]
[1747971781324,0.82373254,2713.5,2713.0,0.884]
[1747971781325,3.68536484,2713.5,2713.0,0.884]
[1747971781513,3.68500571,2713.7,2713.1,14.737]
[1747971782648,3.68528795,2713.5,2713.1,14.737]
[1747971783357,3.68544321,2713.4,2713.2,8.0]
[1747971783654,0.20755211,2713.7,2713.2,8.0]
[1747971783862,0.905,2713.8,2713.2,8.0]
[1747971784331,3.68500571,2713.7,2713.2,8.0]
[1747971784528,3.68514353,2713.6,2713.2,8.0]
[1747971784742,0.8519,2714.0,2713.3,0.8662]
[1747971784942,3.68494605,2713.8,2713.4,8.0]
[1747971785318,0.02,2714.9,2713.8,0.55]
[1747971785656,0.8652,2714.6,2713.9,25.746]
[1747971785834,3.6847019,2714.0,2713.9,33.746]
[1747971786029,3.6847019,2714.0,2713.9,8.0]
[1747971786229,3.6847019,2714.0,2713.9,22.703]
[1747971786436,4.42161833,2714.0,2713.9,22.703]
[1747971786637,4.42161833,2714.0,2713.9,14.703]
[1747971786836,0.73691643,2714.0,2713.5,8.0]
[1747971787039,3.68473414,2713.9,2712.9,0.9253]
[1747971787244,3.6849497,2713.8,2713.0,25.746]
[1747971787561,3.68501286,2713.7,2713.1,8.9253]
[1747971787969,3.68515908,2713.6,2713.1,8.9253]
[1747971788130,0.9053,2714.1,2713.1,8.9253]
[1747971788469,3.68550428,2713.4,2713.1,0.9253]
[1747971788664,3.68548299,2713.4,2713.1,8.9253]
[1747971789043,3.68576368,2713.2,2713.1,8.0]
[1747971789453,3.68582064,2713.1,2713.0,14.703]
[1747971789843,3.68582064,2713.1,2713.0,22.703]
[1747971790044,3.68573571,2713.2,2713.0,22.703]
[1747971790267,3.68573571,2713.2,2713.0,14.703]
[1747971790467,3.68555388,2713.3,2713.0,14.703]
[1747971790768,3.68576989,2713.2,2713.1,8.0]
[1747971791666,0.9353,2713.7,2713.1,8.0]
[1747971791871,3.68553916,2713.4,2713.1,8.0]
[1747971792256,3.68563386,2713.3,2713.1,8.0]
[1747971792449,3.68552701,2713.4,2713.1,8.0]
[1747971792968,3.6856848,2713.2,2713.1,8.0]
[1747971793175,3.68536339,2713.5,2713.1,8.0]
[1747971793539,3.68536339,2713.5,2713.2,0.8739]
[1747971793743,0.9157,2714.1,2713.3,8.0]
[1747971793956,3.68485876,2713.9,2713.3,8.0]
[1747971794143,3.68469668,2714.0,2713.5,8.0]
[1747971794486,3.68469668,2714.0,2713.6,14.703]
[1747971794834,3.68476499,2713.9,2713.6,14.703]
[1747971795036,3.68489651,2713.8,2713.6,14.703]
[1747971796070,3.68496929,2713.8,2713.6,14.703]
[1747971796243,3.68443408,2714.2,2713.7,8.9046]
[1747971796448,0.9405,2714.6,2713.7,8.9046]
[1747971796668,3.68486992,2713.8,2713.7,8.9046]
[1747971796849,3.6851449,2713.6,2713.5,11.043]
[1747971797045,3.68505998,2713.7,2713.6,8.0]
[1747971797274,3.68505998,2713.7,2713.3,8.0]
[1747971797275,3.68527105,2713.6,2713.3,8.0]
[1747971797478,3.68527105,2713.6,2713.5,8.0]
[1747971797641,3.68489587,2713.8,2713.5,8.0]
[1747971797843,3.68500571,2713.7,2713.5,8.0]
[1747971798043,3.6851415,2713.6,2713.5,8.0]
[1747971798580,3.6851415,2713.6,2713.5,22.702]
[1747971799278,3.68506136,2713.7,2713.6,8.0]
[1747971800179,3.68492551,2713.8,2713.6,8.0]
[1747971800357,3.68475317,2713.9,2713.6,8.0]
[1747971800541,3.68462053,2714.0,2713.6,8.8596]
[1747971800747,3.68486436,2713.9,2713.6,8.8596]
[1747971801163,3.68494862,2713.8,2713.6,8.0]
[1747971801976,3.68486436,2713.9,2713.6,8.0]
[1747971802162,9.68434723,2714.2,2713.7,2.2702]
[1747971802481,6.0,2714.2,2713.8,8.8588]
[1747971802684,3.68433485,2714.2,2713.8,8.8588]
[1747971802892,3.68473414,2713.9,2713.8,8.0]
[1747971803888,3.68462669,2714.0,2713.8,8.0]
[1747971804595,3.68462669,2714.0,2713.6,8.9218]
[1747971804767,3.68462669,2714.0,2713.7,10.36238]
[1747971805092,3.68462669,2714.0,2713.9,8.0]
[1747971805396,3.68454748,2714.1,2713.9,8.0]
[1747971806286,3.68459837,2714.0,2713.9,8.0]
[1747971806692,3.68459837,2714.0,2713.2,3.68563154]
[1747971806858,3.68495945,2713.8,2713.4,8.0]
[1747971807254,3.6854035,2713.5,2713.1,11.042]
[1747971807454,3.68549527,2713.4,2713.2,14.701]
[1747971807765,3.68549527,2713.4,2713.3,8.0]
[1747971808211,3.68549527,2713.4,2713.0,0.9226]
[1747971808388,0.8789,2713.5,2713.1,14.701]
[1747971808563,3.68514568,2713.6,2713.2,8.0]
[1747971808763,4.59334604,2713.7,2713.2,8.0]
[1747971809009,3.68520055,2713.6,2713.2,8.0]
[1747971809177,3.6850317,2713.7,2713.2,8.0]
[1747971809382,3.6850317,2713.7,2713.3,3.70919045]
[1747971809587,3.68517752,2713.6,2713.3,3.70919045]
[1747971809791,3.68506523,2713.7,2713.3,3.70919045]
[1747971810106,9.68496412,2713.8,2713.2,3.68566677]
[1747971810279,9.68487566,2713.8,2713.1,14.701]
[1747971810766,3.68517146,2713.6,2713.1,14.701]
[1747971811194,3.68519765,2713.6,2713.4,0.58086356]
[1747971812705,3.68527731,2713.5,2713.4,0.58086356]
[1747971814620,6.0,2713.8,2713.2,8.0]
[1747971814621,6.0,2713.8,2713.3,0.58086356]
[1747971814771,9.68496542,2713.8,2713.3,0.58086356]
[1747971815972,6.9501,2714.2,2713.6,8.0]
[1747971816171,0.9501,2714.2,2713.8,8.0]
[1747971816504,3.68453764,2714.1,2713.8,8.0]
[1747971817010,9.68395079,2714.5,2713.9,0.2252]
[1747971817213,3.68419113,2714.3,2713.9,0.2252]
[1747971817572,6.0,2714.5,2714.0,8.0]
[1747971817771,9.68401808,2714.5,2714.0,8.0]
[1747971817973,6.0,2714.5,2714.0,3.68450775]
[1747971818173,6.0,2714.5,2714.1,0.58086356]
[1747971818370,6.0,2714.5,2714.3,8.0]
[1747971818811,9.68395996,2714.5,2714.3,8.0]
[1747971820209,9.68397247,2714.5,2714.3,8.0]
[1747971820815,3.68379707,2714.6,2714.3,8.0]
[1747971822030,3.68370944,2714.7,2714.3,8.0]
[1747971822187,4.07370291,2714.9,2714.3,8.58086356]
[1747971822393,3.68351259,2714.8,2714.4,0.2252]
[1747971822589,0.39032411,2714.9,2714.4,0.2252]
[1747971822590,3.68372609,2714.7,2714.4,0.2252]
[1747971823098,3.68353471,2714.8,2714.4,0.2252]
[1747971823303,0.8749,2714.8,2714.3,8.58086356]
[1747971823500,3.68389458,2714.6,2714.3,8.58086356]
[1747971823699,3.6837042,2714.7,2714.3,8.58086356]
[1747971824215,3.68378779,2714.6,2714.3,8.58086356]
[1747971824593,3.68370345,2714.7,2714.3,8.58086356]
[1747971825379,4.55845126,2714.8,2714.3,8.58086356]
[1747971825993,3.68366651,2714.7,2714.3,8.58086356]
[1747971826892,3.68354977,2714.8,2714.3,8.58086356]
[1747971827920,3.68366064,2714.7,2714.3,8.58086356]
[1747971828636,3.68357536,2714.8,2714.3,8.58086356]
[1747971829833,3.68357536,2714.8,2714.3,12.26503527]
[1747971830785,3.70343494,2714.9,2714.3,12.26503527]
[1747971831348,3.70212847,2715.9,2715.1,3.6830257]
[1747971831502,3.68225441,2715.8,2715.2,25.708]
[1747971831710,3.702044,2715.9,2715.3,0.2249]
[1747971832034,3.68236603,2715.7,2715.3,0.2249]
[1747971832240,0.02,2715.9,2715.2,25.708]
[1747971832537,3.68264115,2715.5,2715.0,24.1219]
[1747971832750,0.36826412,2715.4,2714.7,14.669]
[1747971833048,0.944,2715.5,2715.0,0.58086356]
[1747971833199,3.6830679,2715.2,2715.0,0.58086356]
[1747971834253,3.68310559,2715.1,2715.0,0.58086356]
[1747971834803,3.68336248,2715.0,2714.7,14.669]
[1747971835198,3.68341316,2714.9,2714.8,8.0]
[1747971837244,3.68351259,2714.8,2714.7,22.668]
[1747971839237,4.50728154,2714.8,2714.7,22.668]
[1747971840450,3.68419113,2714.3,2714.2,15.897]
[1747971840740,0.9038,2714.7,2714.3,8.0]
[1747971841317,3.6840554,2714.4,2714.3,8.0]
[1747971841506,3.6840554,2714.4,2714.3,22.667]
[1747971842346,4.78923217,2714.4,2714.3,22.667]
[1747971842507,5.70813217,2714.4,2714.3,8.0]
[1747971842868,3.68425893,2714.3,2714.1,8.0]
[1747971843146,3.68377867,2714.7,2714.1,8.0]
[1747971843305,3.68358923,2714.8,2714.2,3.68432254]
[1747971843501,3.68296994,2715.2,2714.4,8.0]
[1747971843818,3.68334426,2715.0,2714.6,8.0]
[1747971844014,0.9189,2715.3,2714.6,8.0]
[1747971844015,3.68314555,2715.1,2714.6,8.0]
[1747971844243,3.68314555,2715.1,2714.7,0.2249]
[1747971844438,3.68302201,2715.2,2714.7,0.2249]
[1747971845367,3.68302201,2715.2,2714.7,0.80576356]
[1747971845533,3.68298938,2715.2,2714.7,0.80576356]
[1747971845729,3.68310559,2715.1,2714.7,0.80576356]
[1747971846647,3.68302983,2715.2,2714.7,1.47201554]
[1747971847063,3.68311975,2715.1,2714.8,0.58086356]
[1747971847366,6.0,2715.6,2714.8,0.58086356]
[1747971847568,3.68274445,2715.4,2715.0,8.0]
[1747971847863,3.68274445,2715.4,2715.2,8.0]
[1747971848733,4.28258216,2715.5,2715.2,8.0]
[1747971849332,3.68258216,2715.5,2715.2,8.0]
[1747971849526,6.0,2715.6,2715.2,8.0]
[1747971849732,6.0,2715.6,2715.2,8.2249]
[1747971850148,3.68256306,2715.5,2715.2,8.2249]
[1747971850349,3.68274257,2715.4,2715.2,8.2249]
[1747971850647,3.68260334,2715.5,2715.2,8.2249]
[1747971851051,0.02,2715.9,2715.2,8.80576356]
[1747971851052,3.68215627,2715.8,2715.2,8.80576356]
[1747971851248,3.68251877,2715.6,2715.2,8.80576356]
[1747971851659,3.68215627,2715.8,2715.2,8.80576356]
[1747971851660,3.68234997,2715.7,2715.2,8.80576356]
[1747971852263,3.70204434,2715.9,2715.2,1.08280915]
[1747971852465,0.02,2715.9,2715.4,3.68268299]
[1747971852689,0.02,2715.9,2715.5,11.037]
[1747971852880,0.02,2715.9,2715.7,0.2249]
[1747971853473,0.02,2715.9,2715.6,14.638]
[1747971853687,3.70211803,2715.9,2715.6,14.638]
[1747971853863,0.02,2715.9,2715.6,14.638]
[1747971854293,0.02,2715.9,2715.7,8.0]
[1747971856390,3.70204998,2715.9,2715.7,8.0]
[1747971856891,3.68215627,2715.8,2715.7,8.0]
[1747971857079,3.70206256,2715.9,2715.7,8.0]
[1747971857787,3.68242745,2715.6,2715.5,0.58086356]
[1747971858090,3.68242745,2715.6,2715.5,22.636]
[1747971858467,3.68232208,2715.7,2715.6,8.0]
[1747971860169,3.70213992,2715.9,2715.6,8.0]
[1747971860367,3.70213992,2715.9,2715.7,0.2249]
[1747971860575,0.02,2715.9,2715.7,0.2249]
[1747971860773,0.2,2716.4,2716.3,11.90637848]
[1747971860971,3.92249577,2717.5,2716.6,3.68097523]
[1747971861289,0.242616,2717.5,2716.8,11.68080094]
[1747971861490,0.242616,2717.5,2716.8,11.90570094]
[1747971861690,0.242616,2717.5,2716.8,12.45570094]
[1747971861911,0.242616,2717.5,2717.1,11.68037817]
[1747971862075,0.242616,2717.5,2717.4,0.2375]
[1747971862259,0.242616,2717.5,2717.4,19.2725]
[1747971862865,0.02,2717.9,2717.5,8.0]
[1747971863603,0.02,2717.9,2717.8,3.91694661]
[1747971863806,0.02,2717.9,2717.8,42.43494661]
[1747971864178,1.8601141,2718.3,2717.8,42.98494661]
[1747971864377,2.41814833,2719.1,2717.8,42.98494661]
[1747971864378,2.41814833,2719.1,2718.3,0.55]
[1747971864582,2.41814833,2719.1,2718.5,8.55]
[1747971864904,2.41814833,2719.1,2718.6,8.0]
[1747971865315,2.41814833,2719.1,2718.8,8.0]
[1747971866068,2.41814833,2719.1,2718.8,23.886]
[1747971866275,6.09587035,2719.1,2718.8,23.886]
[1747971866502,3.67795799,2718.9,2718.8,23.886]
[1747971866661,4.65534082,2718.9,2718.8,38.513]
[1747971867064,4.65534082,2718.9,2718.8,22.627]
[1747971867364,3.67853957,2718.5,2718.3,0.42889959]
[1747971867563,0.97738283,2718.9,2718.3,0.42889959]
[1747971867763,2.41814833,2719.1,2718.3,0.42889959]
[1747971867971,3.67863449,2718.4,2718.3,0.42889959]
[1747971868171,3.67854375,2718.5,2718.3,0.42889959]
[1747971868372,3.67810243,2718.8,2718.2,8.0]
[1747971868676,3.67798208,2718.9,2718.1,14.627]
[1747971868880,3.67811767,2718.8,2718.2,8.55]
[1747971869288,3.67807368,2718.9,2718.2,8.55]
[1747971869512,3.67807368,2718.9,2718.2,12.22887687]
[1747971869818,3.67815298,2718.8,2718.2,8.55]
[1747971870195,3.67825615,2718.7,2718.2,8.55]